{"text_format":"1","workbook":"xlsx","n_sheets":2,"sheets":["TRASLADO DE BIENES","Hoja1"],"not_rendered":{"charts":0,"images":1,"macros":1,"external_links":0,"defined_names":1,"comments":0,"pivot_tables":0},"unopened":[],"bounds":{"document_bytes":16777216,"sheet_cells":100000,"rows_first":2000,"rows_last":500,"rows_between":2000,"halvings":0,"cell_chars":16384,"cell_head_chars":4096},"cells_cut":0,"cells_raw":0,"read":"whole","date_system":"1900"}

{"sheet":"TRASLADO DE BIENES","index":0,"n_rows":49,"n_cols":27,"rows_kept":49,"cut":false,"hidden":false,"merged":[[18,15,29,16],[38,9,38,13],[39,9,39,13],[39,1,39,5],[27,4,27,8],[34,1,34,13],[33,1,33,13],[31,4,31,8],[32,4,32,8],[19,3,19,7],[28,11,28,13],[29,11,29,13],[31,11,31,13],[32,11,32,13],[32,9,32,10],[19,9,19,13],[13,1,13,2],[13,3,13,7],[14,3,14,7],[41,1,41,5],[42,1,42,5],[38,1,38,5],[20,3,20,6],[25,4,25,8],[25,3,26,3],[25,2,26,2],[22,1,22,13],[26,4,26,8],[26,9,26,10],[28,9,28,10],[29,9,29,10],[31,9,31,10],[1,1,1,11],[2,1,2,11],[3,1,3,11],[5,3,5,4],[11,1,11,6],[9,11,9,13],[7,11,7,13],[9,4,9,5],[47,1,47,13],[4,15,15,16],[11,11,11,13],[27,9,27,10],[12,9,12,10],[18,11,18,13],[18,9,18,10],[25,1,26,1],[23,4,23,8],[27,11,27,13],[17,11,17,13],[20,10,20,13],[26,11,26,13],[14,10,14,13],[12,11,12,13],[13,9,13,13],[23,10,23,13],[25,9,25,13],[18,3,18,8],[12,3,12,8],[30,4,30,8],[30,9,30,10],[30,11,30,13],[28,4,28,8],[29,4,29,8]]}
[null,null,null,null,null,null,null,null,null,null,null,null,null,null,null,null,null,null,null,null,null,null,null,null,null,null,2]
[null,"Macroproceso: Gestión Administrativa y Financiera",null,null,null,null,null,null,null,null,null,null,null,null,null,null,null,null,null,null,null,null,null,null,null,null,1]
[null,"Proceso: Gestión de Bienes "]
[null,"Nombre formato: Solicitud de traslado de bienes "]
[null,null,null,null,null,null,null,null,null,null,null,null,null,null,null,"En caso de requerir más filas por favor de click para insertar NUEVA HOJA y seguir diligenciando sin perder los datos de los responsables y el consecutivo de los items"]
[null,null,"SEDE:",null,null,null,null,"FONDO"]
[]
[null,null,null,null,null,null,null,null,null,null,"NÚMERO DE RADICADO"]
[]
[null,null,null,"FECHA DE SOLICITUD",null,null,null,null,null,null,"NÚMERO DE SOLICITUD"]
[]
[null,"RESPONSABLE DEL BIEN  (QUIEN ENTREGA)  ",null,null,null,null,null,null,null,null,"Correo Electrónico "]
[null,"NOMBRES Y APELLIDOS: ",null,null,null,null,null,null,null,"IDENTIFICACION:"]
[null,"EMPRESA (*):",null,null,null,null,null,null,"DEPENDENCIA:"]
[null,"CARGO:",null,null,null,null,null,null,null,"TELEFONO-EXT.:"]
[null,"(*) facultad o fondo al cual pertenece el responsable del bien."]
[]
[null,"DESTINATARIO DEL BIEN    (QUIEN RECIBE)",null,null,null,null,null,null,null,null,"Correo Electrónico "]
[null,"NOMBRES Y APELLIDOS:",null,null,null,null,null,null,null,"IDENTIFICACION:",null,null,null,null,null,"NOTA:  Asegurese que al momento de imprimir el formato en el pie de página salga el código del formato, la versión y la paginación"]
[null,"EMPRESA (*):",null,null,null,null,null,null,"DEPENDENCIA:"]
[null,"CARGO: ",null,null,null,null,null,null,null,"TELEFONO-EXT.:"]
[null,"(*) facultad o fondo al cual pertenece el destinatario del bien."]
[null,"AUTORIZADO POR (JEFE INMEDIATO O DE DEPENDENCIA DE DONDE PERTENECE EL BIEN):"]
[null,"NOMBRES Y APELLIDOS:",null,null,null,null,null,null,null,"CARGO:"]
[]
[null,"Nº ITEM","PLACA ANTERIOR (OPCIONAL)","PLACA \nNUEVA\n(OBLIGATORIA)","DESCRIPCION DETALLADA DE LOS BIENES",null,null,null,null,"LUGAR DONDE SERÁ UBICADO EL BIEN"]
[null,null,null,null,"(MARCA, MODELO, REFERENCIA, SERIE, ACCESORIOS, ETC., la información debe corresponder a la registrada en el Sistema de Gestión Financiera)",null,null,null,null,"EMPRESA\n(facultad o fondo)",null,"DEPENDENCIA: (No. del edificio, departamento, recinto, piso, oficina, laboratorio, etc.)"]
[]
[]
[]
[]
[]
[]
[null,"OBSERVACIONES:"]
[]
[null,"FIRMAS:"]
[null,"*PARA ADELANTAR EL TRAMITE SE REQUIERE DE ESTE DOCUMENTO ORIGINAL Y DOS (2) COPIAS"]
[]
[]
[null,"RESPONSABLE DEL BIEN  (QUIEN ENTREGA EL ELEMENTO)",null,null,null,null,null,null,null," DESTINATARIO DEL BIEN: (NUEVO RESPONSABLE)"]
[]
[]
[null,"AUTORIZADO POR  \n (JEFE INMEDIATO O DE DEPENDENCIA DE DONDE PERTENECE ELBIEN)   "]
[]
[null,"Original:     Sección Inventarios.  "]
[null,"1ª. Copia:    Sección Inventarios.  2ª. Copia: Interesado. "]
[]
[null,"El Formato deberá ser radicado ante el área de inventarios para su respectivo trámite."]
[null,"Código: U.FT.12.003.002",null,null,null,null,null,"Versión: 0.0",null,null,null,null,null,"Página 1 de 1"]

{"sheet":"Hoja1","index":1,"n_rows":40,"n_cols":11,"rows_kept":40,"cut":false,"hidden":true,"merged":[]}
["BOGOTÁ",null,1001,"NIVEL CENTRAL NIVEL NACIONAL",{"$f":"CONCATENATE(C1,\"- \",D1)","v":"1001- NIVEL CENTRAL NIVEL NACIONAL"},null,null,null,null,null,3]
["NACIONAL",null,1002,"UNISALUD NIVEL NACIONAL",{"$f":"CONCATENATE(C2,\"- \",D2)","v":"1002- UNISALUD NIVEL NACIONAL"}]
["TUMACO",null,1004,"EDITORIAL UNIVERSIDAD NACIONAL ","1004- EDITORIAL UNIVERSIDAD NACIONAL "]
[null,null,1005,"UNIMEDIOS NIVEL CENTRAL ","1005- UNIMEDIOS NIVEL CENTRAL "]
[null,null,1010,"FONDO ESPECIAL NIVEL NACIONAL","1010- FONDO ESPECIAL NIVEL NACIONAL"]
[null,null,1011,"FONDO ESPECIAL UNIMEDIOS","1011- FONDO ESPECIAL UNIMEDIOS"]
[null,null,1060,"UGI NIVEL CENTRAL NIVEL NACIONAL","1060- UGI NIVEL CENTRAL NIVEL NACIONAL"]
[null,null,1061,"UGI NIVEL NACIONAL  FONDO ESPECIAL","1061- UGI NIVEL NACIONAL  FONDO ESPECIAL"]
[null,null,1101,"NIVEL CENTRAL INST ESTUDIOS DEL PACÍFICO","1101- NIVEL CENTRAL INST ESTUDIOS DEL PACÍFICO"]
[null,null,1110,"FONDO ESPECIAL INST ESTUDIOS DEL PACIFICO","1110- FONDO ESPECIAL INST ESTUDIOS DEL PACIFICO"]
[null,null,1180,"FONDO NACIONAL DE REGALIAS","1180- FONDO NACIONAL DE REGALIAS"]
[null,null,2001,"NIVEL NACIONAL SEDE BOGOTA","2001- NIVEL NACIONAL SEDE BOGOTA"]
[null,null,2004,"DIRECCIÓN ACADÉMICA","2004- DIRECCIÓN ACADÉMICA"]
[null,null,2005,"DIRECCION DE BIENESTAR","2005- DIRECCION DE BIENESTAR"]
[null,null,2010,"DIRECCION FINANCIERA Y ADMINISTRATIVA","2010- DIRECCION FINANCIERA Y ADMINISTRATIVA"]
[null,null,2011,"FACULTAD DE CIENCIAS AGRARIAS","2011- FACULTAD DE CIENCIAS AGRARIAS"]
[null,null,2012,"FACULTAD DE ARTES","2012- FACULTAD DE ARTES"]
[null,null,2013,"FACULTAD DE CIENCIAS","2013- FACULTAD DE CIENCIAS"]
[null,null,2014,"FACULTAD DE CIENCIAS HUMANAS","2014- FACULTAD DE CIENCIAS HUMANAS"]
[null,null,2015,"FACULTAD DE CIENCIAS ECONÓMICAS","2015- FACULTAD DE CIENCIAS ECONÓMICAS"]
[null,null,2016,"FACULTAD DE ENFERMERÍA","2016- FACULTAD DE ENFERMERÍA"]
[null,null,2017,"FACULTAD DE DERECHO","2017- FACULTAD DE DERECHO"]
[null,null,2018,"FACULTAD DE INGENIERÍA ","2018- FACULTAD DE INGENIERÍA "]
[null,null,2019,"FACULTAD DE MEDICINA","2019- FACULTAD DE MEDICINA"]
[null,null,2020,"FACULTAD DE ODONTOLOGÍA","2020- FACULTAD DE ODONTOLOGÍA"]
[null,null,2021,"FACULTAD DE MEDICINA VETERINARIA Y ZOOTECNIA","2021- FACULTAD DE MEDICINA VETERINARIA Y ZOOTECNIA"]
[null,null,2023,"FONDO ESPECIAL MARENGO","2023- FONDO ESPECIAL MARENGO"]
[null,null,2060,"UGI SEDE BOGOTA NIVEL CENTRAL","2060- UGI SEDE BOGOTA NIVEL CENTRAL"]
[null,null,2061,"UGI FACULTAD DE CIENCIAS AGRARIAS","2061- UGI FACULTAD DE CIENCIAS AGRARIAS"]
[null,null,2062,"UGI FACULTAD DE ARTES","2062- UGI FACULTAD DE ARTES"]
[null,null,2063,"UGI  FACULTAD DE CIENCIAS","2063- UGI  FACULTAD DE CIENCIAS"]
[null,null,2064,"UGI  FACULTAD DE CIENCIAS HUMANAS","2064- UGI  FACULTAD DE CIENCIAS HUMANAS"]
[null,null,2065,"UGI  FACULTAD DE CIENCIAS ECONÓMICAS","2065- UGI  FACULTAD DE CIENCIAS ECONÓMICAS"]
[null,null,2066,"UGI  FACULTAD DE ENFERMERÍA","2066- UGI  FACULTAD DE ENFERMERÍA"]
[null,null,2067,"UGI  FACULTAD DE DERECHO","2067- UGI  FACULTAD DE DERECHO"]
[null,null,2068,"UGI FACULTAD DE INGENIERÍA ","2068- UGI FACULTAD DE INGENIERÍA "]
[null,null,2069,"UGI  FACULTAD DE MEDICINA","2069- UGI  FACULTAD DE MEDICINA"]
[null,null,2070,"UGI  FACULTAD DE ODONTOLOGÍA","2070- UGI  FACULTAD DE ODONTOLOGÍA"]
[null,null,2071,"UGI  FACULTAD DE MEDICINA VETERINARIA Y ZOOTECNIA","2071- UGI  FACULTAD DE MEDICINA VETERINARIA Y ZOOTECNIA"]
[null,null,2072,"UGI DIRECCIÓN ACADÉMICA","2072- UGI DIRECCIÓN ACADÉMICA"]